[Event "Titled Tuesday Blitz February 15 Early 2022"]
[White "Ovezdurdyyeva, Jemal"]
[Black "Kuznecovs, Nikita"]
[WhiteFideId "14001888"]
[BlackFideId "11604557"]
[WhiteElo "1946"]
[BlackElo "2127"]
[Result "1-0"]
[Round "03"]
[TimeControl "180+1"]
[Date "2022.02.15"]
[WhiteClock "0:00:06"]
[BlackClock "0:00:02"]

1. e4 {[%clk 0:03:00]}  e6 {[%clk 0:02:58]} 2. d4 {[%clk 0:02:58]}  d5 {[%clk 0:02:59]} 3. Nc3 {[%clk 0:02:58]}  Nf6 {[%clk 0:02:58]} 4. e5 {[%clk 0:02:23]}  Nfd7 {[%clk 0:02:56]} 5. f4 {[%clk 0:02:20]}  c5 {[%clk 0:02:56]} 6. Be3 {[%clk 0:02:15]}  Nc6 {[%clk 0:02:56]} 7. Nf3 {[%clk 0:02:14]}  Be7 {[%clk 0:02:50]} 8. Be2 {[%clk 0:02:12]}  O-O {[%clk 0:02:50]} 9. O-O {[%clk 0:02:12]}  b6 {[%clk 0:02:50]} 10. Kh1 {[%clk 0:02:11]}  Bb7 {[%clk 0:02:50]} 11. f5 {[%clk 0:02:08]}  cxd4 {[%clk 0:02:49]} 12. Nxd4 {[%clk 0:02:06]}  Bc5 {[%clk 0:02:24]} 13. fxe6 {[%clk 0:01:42]}  Bxd4 {[%clk 0:02:12]} 14. exf7+ {[%clk 0:01:34]}  Rxf7 {[%clk 0:02:09]} 15. Bxd4 {[%clk 0:01:33]}  Rxf1+ {[%clk 0:02:08]} 16. Bxf1 {[%clk 0:01:31]}  Ndxe5 {[%clk 0:02:07]} 17. Bf2 {[%clk 0:01:23]}  d4 {[%clk 0:02:00]} 18. Nb5 {[%clk 0:01:11]}  Qf6 {[%clk 0:01:27]} 19. Bxd4 {[%clk 0:00:47]}  Nxd4 {[%clk 0:01:26]} 20. Qxd4 {[%clk 0:00:45]}  Rf8 {[%clk 0:01:20]} 21. Bc4+ {[%clk 0:00:26]}  Kh8 {[%clk 0:01:16]} 22. Bd3 {[%clk 0:00:22]}  Qc6 {[%clk 0:00:29]} 23. Rg1 {[%clk 0:00:19]}  Nf3 {[%clk 0:00:29]} 24. Qd6 {[%clk 0:00:07]}  Qxd6 {[%clk 0:00:25]} 25. Nxd6 {[%clk 0:00:07]}  Nxg1 {[%clk 0:00:09]} 26. Nxb7 {[%clk 0:00:07]}  Nf3 {[%clk 0:00:04]} 27. gxf3 {[%clk 0:00:07]}  Rxf3 {[%clk 0:00:05]} 28. Kg2 {[%clk 0:00:08]}  Rf6 {[%clk 0:00:05]} 29. Nd8 {[%clk 0:00:08]}  g6 {[%clk 0:00:05]} 30. Be4 {[%clk 0:00:08]}  Kg7 {[%clk 0:00:05]} 31. Nc6 {[%clk 0:00:08]}  a5 {[%clk 0:00:05]} 32. Bf3 {[%clk 0:00:07]}  h5 {[%clk 0:00:05]} 33. Ne5 {[%clk 0:00:07]}  Kh6 {[%clk 0:00:05]} 34. Nc4 {[%clk 0:00:07]}  g5 {[%clk 0:00:05]} 35. h3 {[%clk 0:00:06]}  Re6 {[%clk 0:00:04]} 36. Kf2 {[%clk 0:00:06]}  Rf6 {[%clk 0:00:04]} 37. Ne3 {[%clk 0:00:06]}  b5 {[%clk 0:00:03]} 38. c3 {[%clk 0:00:06]}  Kg6 {[%clk 0:00:02]} 39. Kg3 {[%clk 0:00:06]}  Rd6 {[%clk 0:00:02]} 40. Be4+ {[%clk 0:00:06]}  Kh6 {[%clk 0:00:02]} 41. Nf5+ {[%clk 0:00:06]} 1-0


[Site "https://www.chess.com"]

[Event "Titled Tuesday Blitz February 15 Early 2022"]
[White "Piliczewski, Bogusz"]
[Black "Jain, Naveen"]
[WhiteFideId "1104144"]
[BlackFideId "5003970"]
[WhiteElo "1896"]
[BlackElo "2036"]
[Result "0-1"]
[Round "03"]
[TimeControl "180+1"]
[Date "2022.02.15"]
[WhiteClock "0:00:08"]
[BlackClock "0:01:43"]

1. d4 {[%clk 0:02:59]}  Nf6 {[%clk 0:03:00]} 2. Nf3 {[%clk 0:02:59]}  c5 {[%clk 0:03:00]} 3. c3 {[%clk 0:02:58]}  d5 {[%clk 0:03:00]} 4. Bf4 {[%clk 0:02:58]}  Nc6 {[%clk 0:03:00]} 5. e3 {[%clk 0:02:59]}  Qb6 {[%clk 0:02:58]} 6. Qb3 {[%clk 0:02:57]}  c4 {[%clk 0:02:58]} 7. Qxb6 {[%clk 0:02:54]}  axb6 {[%clk 0:02:59]} 8. Nbd2 {[%clk 0:02:53]}  Bf5 {[%clk 0:02:57]} 9. a3 {[%clk 0:02:52]}  e6 {[%clk 0:02:58]} 10. h3 {[%clk 0:02:51]}  b5 {[%clk 0:02:58]} 11. g4 {[%clk 0:02:50]}  Bg6 {[%clk 0:02:55]} 12. Ne5 {[%clk 0:02:49]}  b4 {[%clk 0:02:51]} 13. Nxg6 {[%clk 0:02:42]}  hxg6 {[%clk 0:02:50]} 14. cxb4 {[%clk 0:02:42]}  Nxb4 {[%clk 0:02:49]} 15. Rb1 {[%clk 0:02:35]}  Nc6 {[%clk 0:02:47]} 16. Bg2 {[%clk 0:02:30]}  b5 {[%clk 0:02:47]} 17. O-O {[%clk 0:02:27]}  b4 {[%clk 0:02:47]} 18. axb4 {[%clk 0:02:23]}  Bxb4 {[%clk 0:02:45]} 19. Nf3 {[%clk 0:02:22]}  Kd7 {[%clk 0:02:41]} 20. Rfd1 {[%clk 0:02:17]}  Ne4 {[%clk 0:02:40]} 21. Ne5+ {[%clk 0:02:11]}  Nxe5 {[%clk 0:02:39]} 22. Bxe5 {[%clk 0:02:10]}  Nd2 {[%clk 0:02:31]} 23. Ra1 {[%clk 0:02:03]}  Nb3 {[%clk 0:02:31]} 24. Rxa8 {[%clk 0:01:56]}  Rxa8 {[%clk 0:02:32]} 25. Bxg7 {[%clk 0:01:55]}  Ra2 {[%clk 0:02:32]} 26. h4 {[%clk 0:01:42]}  Rxb2 {[%clk 0:02:23]} 27. h5 {[%clk 0:01:42]}  c3 {[%clk 0:02:24]} 28. h6 {[%clk 0:01:31]}  c2 {[%clk 0:02:24]} 29. Rf1 {[%clk 0:01:24]}  Nd2 {[%clk 0:02:17]} 30. h7 {[%clk 0:01:17]}  Nxf1 {[%clk 0:02:17]} 31. h8=Q {[%clk 0:01:11]}  c1=Q {[%clk 0:02:17]} 32. Bxf1 {[%clk 0:01:05]}  Be1 {[%clk 0:02:03]} 33. Bb5+ {[%clk 0:00:34]}  Rxb5 {[%clk 0:01:48]} 34. Qf8 {[%clk 0:00:19]}  Bxf2+ {[%clk 0:01:46]} 35. Kxf2 {[%clk 0:00:16]}  Rb2+ {[%clk 0:01:46]} 36. Kg3 {[%clk 0:00:10]}  Qxe3+ {[%clk 0:01:43]} 37. Kh4 {[%clk 0:00:08]}  Rh2# {[%clk 0:01:43]} 0-1


[Site "https://www.chess.com"]

[Event "Titled Tuesday Blitz February 15 Early 2022"]
[White "Pinheiro, Iung Alicio de O."]
[Black "Moskvin, Anatoly"]
[WhiteFideId "2104350"]
[BlackFideId "24199990"]
[WhiteElo "2653"]
[BlackElo "2079"]
[Result "0-1"]
[Round "03"]
[TimeControl "180+1"]
[Date "2022.02.15"]
[WhiteClock "0:00:21"]
[BlackClock "0:00:11"]

1. e4 {[%clk 0:02:59]}  e5 {[%clk 0:02:59]} 2. Bc4 {[%clk 0:02:56]}  Nc6 {[%clk 0:02:59]} 3. d3 {[%clk 0:02:55]}  Nf6 {[%clk 0:02:59]} 4. Nc3 {[%clk 0:02:52]}  Na5 {[%clk 0:02:59]} 5. Qf3 {[%clk 0:02:51]}  Bb4 {[%clk 0:02:49]} 6. Ne2 {[%clk 0:02:50]}  h6 {[%clk 0:02:42]} 7. a3 {[%clk 0:02:45]}  Bxc3+ {[%clk 0:02:41]} 8. Nxc3 {[%clk 0:02:45]}  Nxc4 {[%clk 0:02:41]} 9. dxc4 {[%clk 0:02:46]}  d6 {[%clk 0:02:41]} 10. h3 {[%clk 0:02:45]}  Be6 {[%clk 0:02:42]} 11. b3 {[%clk 0:02:44]}  c6 {[%clk 0:02:34]} 12. O-O {[%clk 0:02:43]}  Qc7 {[%clk 0:02:31]} 13. Be3 {[%clk 0:02:39]}  O-O {[%clk 0:02:22]} 14. Qg3 {[%clk 0:02:38]}  Kh8 {[%clk 0:02:03]} 15. Qh4 {[%clk 0:02:32]}  Nh7 {[%clk 0:01:59]} 16. f4 {[%clk 0:02:21]}  exf4 {[%clk 0:01:34]} 17. Qxf4 {[%clk 0:02:14]}  Qe7 {[%clk 0:01:27]} 18. Rad1 {[%clk 0:02:10]}  Rfd8 {[%clk 0:01:15]} 19. Bd4 {[%clk 0:02:04]}  Qg5 {[%clk 0:01:09]} 20. Qf3 {[%clk 0:01:45]}  Nf8 {[%clk 0:01:04]} 21. Rd3 {[%clk 0:01:41]}  Ng6 {[%clk 0:01:02]} 22. Rfd1 {[%clk 0:01:39]}  Ne5 {[%clk 0:00:56]} 23. Bxe5 {[%clk 0:01:31]}  dxe5 {[%clk 0:00:57]} 24. Na4 {[%clk 0:01:09]}  b6 {[%clk 0:00:50]} 25. Nc3 {[%clk 0:01:09]}  Kg8 {[%clk 0:00:34]} 26. Ne2 {[%clk 0:01:01]}  Kf8 {[%clk 0:00:27]} 27. Kf2 {[%clk 0:00:59]}  Ke7 {[%clk 0:00:27]} 28. Ng1 {[%clk 0:00:57]}  c5 {[%clk 0:00:13]} 29. Qe3 {[%clk 0:00:52]}  Rd4 {[%clk 0:00:13]} 30. Qxg5+ {[%clk 0:00:46]}  hxg5 {[%clk 0:00:13]} 31. c3 {[%clk 0:00:47]}  Rxe4 {[%clk 0:00:13]} 32. Ne2 {[%clk 0:00:42]}  f6 {[%clk 0:00:13]} 33. Rd6 {[%clk 0:00:38]}  Rh8 {[%clk 0:00:10]} 34. Rc6 {[%clk 0:00:38]}  Rc8 {[%clk 0:00:08]} 35. Rcd6 {[%clk 0:00:35]}  g4 {[%clk 0:00:07]} 36. h4 {[%clk 0:00:33]}  g3+ {[%clk 0:00:04]} 37. Nxg3 {[%clk 0:00:33]}  Rf4+ {[%clk 0:00:05]} 38. Ke3 {[%clk 0:00:30]}  Rxh4 {[%clk 0:00:05]} 39. Ne4 {[%clk 0:00:27]}  Rg4 {[%clk 0:00:04]} 40. R1d2 {[%clk 0:00:25]}  f5 {[%clk 0:00:03]} 41. Nf2 {[%clk 0:00:15]}  Rg3+ {[%clk 0:00:03]} 42. Ke2 {[%clk 0:00:15]}  e4 {[%clk 0:00:04]} 43. Kf1 {[%clk 0:00:16]}  e3 {[%clk 0:00:04]} 44. Rxe6+ {[%clk 0:00:13]}  Kxe6 {[%clk 0:00:04]} 45. Re2 {[%clk 0:00:14]}  f4 {[%clk 0:00:04]} 46. Nh3 {[%clk 0:00:14]}  Kf5 {[%clk 0:00:04]} 47. Ng1 {[%clk 0:00:12]}  Rd8 {[%clk 0:00:04]} 48. Nf3 {[%clk 0:00:13]}  Rd1+ {[%clk 0:00:05]} 49. Re1 {[%clk 0:00:13]}  Rxe1+ {[%clk 0:00:05]} 50. Nxe1 {[%clk 0:00:14]}  Ke4 {[%clk 0:00:06]} 51. Ke2 {[%clk 0:00:13]}  Rxg2+ {[%clk 0:00:05]} 52. Nxg2 {[%clk 0:00:13]}  f3+ {[%clk 0:00:06]} 53. Kf1 {[%clk 0:00:14]}  fxg2+ {[%clk 0:00:07]} 54. Kxg2 {[%clk 0:00:14]}  Kd3 {[%clk 0:00:07]} 55. Kf3 {[%clk 0:00:14]}  e2 {[%clk 0:00:08]} 56. Kf2 {[%clk 0:00:14]}  e1=Q+ {[%clk 0:00:08]} 57. Kxe1 {[%clk 0:00:14]}  Kxc3 {[%clk 0:00:08]} 58. b4 {[%clk 0:00:15]}  cxb4 {[%clk 0:00:07]} 59. axb4 {[%clk 0:00:16]}  Kxc4 {[%clk 0:00:07]} 60. Kd2 {[%clk 0:00:16]}  Kxb4 {[%clk 0:00:08]} 61. Ke3 {[%clk 0:00:16]}  a5 {[%clk 0:00:09]} 62. Kd3 {[%clk 0:00:17]}  a4 {[%clk 0:00:10]} 63. Kc2 {[%clk 0:00:18]}  a3 {[%clk 0:00:11]} 64. Kb1 {[%clk 0:00:19]}  g5 {[%clk 0:00:11]} 65. Ka2 {[%clk 0:00:19]}  g4 {[%clk 0:00:12]} 66. Ka1 {[%clk 0:00:20]}  g3 {[%clk 0:00:13]} 67. Ka2 {[%clk 0:00:21]}  g2 {[%clk 0:00:13]} 68. Kb1 {[%clk 0:00:21]}  Kc3 {[%clk 0:00:09]} 69. Ka2 {[%clk 0:00:22]}  g1=Q {[%clk 0:00:10]} 70. Kxa3 {[%clk 0:00:21]}  Qa1# {[%clk 0:00:11]} 0-1


[Site "https://www.chess.com"]

[Event "Titled Tuesday Blitz February 15 Early 2022"]
[White "Politov, Pavel Y."]
[Black "Dzhaparov, Medet"]
[WhiteFideId "24110515"]
[BlackFideId "13803689"]
[WhiteElo "2090"]
[BlackElo "1702"]
[Result "1-0"]
[Round "03"]
[TimeControl "180+1"]
[Date "2022.02.15"]
[WhiteClock "0:00:04"]
[BlackClock "0:00:21"]

1. e4 {[%clk 0:03:00]}  e5 {[%clk 0:02:59]} 2. Nf3 {[%clk 0:03:00]}  Nc6 {[%clk 0:02:59]} 3. Bc4 {[%clk 0:02:57]}  Bc5 {[%clk 0:02:59]} 4. O-O {[%clk 0:02:57]}  Nf6 {[%clk 0:02:58]} 5. d3 {[%clk 0:02:55]}  d6 {[%clk 0:02:58]} 6. c3 {[%clk 0:02:45]}  O-O {[%clk 0:02:58]} 7. Nbd2 {[%clk 0:02:42]}  Bg4 {[%clk 0:02:57]} 8. Re1 {[%clk 0:02:34]}  a6 {[%clk 0:02:56]} 9. Nf1 {[%clk 0:02:27]}  b5 {[%clk 0:02:55]} 10. Bb3 {[%clk 0:02:26]}  Na5 {[%clk 0:02:53]} 11. Bc2 {[%clk 0:02:25]}  Nc6 {[%clk 0:02:51]} 12. Ng3 {[%clk 0:02:19]}  b4 {[%clk 0:02:51]} 13. h3 {[%clk 0:02:01]}  Be6 {[%clk 0:02:47]} 14. d4 {[%clk 0:01:58]}  exd4 {[%clk 0:02:16]} 15. cxd4 {[%clk 0:01:56]}  Bb6 {[%clk 0:02:09]} 16. d5 {[%clk 0:01:55]}  Bd7 {[%clk 0:02:07]} 17. dxc6 {[%clk 0:01:55]}  Bxc6 {[%clk 0:02:07]} 18. Be3 {[%clk 0:01:50]}  Bxe3 {[%clk 0:02:07]} 19. Rxe3 {[%clk 0:01:51]}  Re8 {[%clk 0:02:06]} 20. e5 {[%clk 0:01:36]}  Bxf3 {[%clk 0:02:03]} 21. Qxf3 {[%clk 0:01:33]}  dxe5 {[%clk 0:02:00]} 22. Rd1 {[%clk 0:01:29]}  Qe7 {[%clk 0:01:57]} 23. Nf5 {[%clk 0:01:26]}  Qc5 {[%clk 0:01:53]} 24. Be4 {[%clk 0:00:59]}  Nxe4 {[%clk 0:01:47]} 25. Rxe4 {[%clk 0:00:45]}  Rad8 {[%clk 0:01:44]} 26. Rxd8 {[%clk 0:00:41]}  Rxd8 {[%clk 0:01:43]} 27. Qg3 {[%clk 0:00:37]}  Qf8 {[%clk 0:01:35]} 28. Qxe5 {[%clk 0:00:24]}  Rd1+ {[%clk 0:01:26]} 29. Kh2 {[%clk 0:00:24]}  f6 {[%clk 0:01:23]} 30. Qe6+ {[%clk 0:00:23]}  Kh8 {[%clk 0:01:23]} 31. Qe8 {[%clk 0:00:23]}  Rd8 {[%clk 0:01:20]} 32. Qxf8+ {[%clk 0:00:22]}  Rxf8 {[%clk 0:01:20]} 33. Rc4 {[%clk 0:00:22]}  Rc8 {[%clk 0:01:18]} 34. Ne7 {[%clk 0:00:21]}  Rd8 {[%clk 0:01:14]} 35. Rxc7 {[%clk 0:00:20]}  g6 {[%clk 0:01:14]} 36. Nc6 {[%clk 0:00:19]}  Rd2 {[%clk 0:01:13]} 37. Nxb4 {[%clk 0:00:16]}  Rxb2 {[%clk 0:01:13]} 38. a3 {[%clk 0:00:15]}  Rxf2 {[%clk 0:01:13]} 39. Rc6 {[%clk 0:00:14]}  f5 {[%clk 0:01:11]} 40. Rxa6 {[%clk 0:00:13]}  f4 {[%clk 0:01:11]} 41. Kg1 {[%clk 0:00:07]}  Rb2 {[%clk 0:01:07]} 42. Rf6 {[%clk 0:00:07]}  g5 {[%clk 0:01:06]} 43. Rf5 {[%clk 0:00:06]}  h6 {[%clk 0:01:06]} 44. Rb5 {[%clk 0:00:05]}  Rb3 {[%clk 0:01:04]} 45. a4 {[%clk 0:00:05]}  Ra3 {[%clk 0:01:04]} 46. a5 {[%clk 0:00:05]}  Kg7 {[%clk 0:01:03]} 47. a6 {[%clk 0:00:06]}  Kg6 {[%clk 0:01:03]} 48. Rb7 {[%clk 0:00:06]}  Kh5 {[%clk 0:01:01]} 49. Rb6 {[%clk 0:00:04]}  Kh4 {[%clk 0:01:00]} 50. Rxh6+ {[%clk 0:00:04]}  Kg3 {[%clk 0:01:00]} 51. Nc2 {[%clk 0:00:04]}  Rc3 {[%clk 0:00:58]} 52. Ne1 {[%clk 0:00:03]}  Rc1 {[%clk 0:00:52]} 53. Re6 {[%clk 0:00:03]}  Ra1 {[%clk 0:00:52]} 54. Re2 {[%clk 0:00:02]}  g4 {[%clk 0:00:50]} 55. hxg4 {[%clk 0:00:02]}  Kxg4 {[%clk 0:00:50]} 56. Kf2 {[%clk 0:00:02]}  Rxa6 {[%clk 0:00:49]} 57. Nf3 {[%clk 0:00:02]}  Ra3 {[%clk 0:00:48]} 58. Rd2 {[%clk 0:00:02]}  Re3 {[%clk 0:00:47]} 59. Re2 {[%clk 0:00:01]}  Ra3 {[%clk 0:00:41]} 60. Ne5+ {[%clk 0:00:02]}  Kf5 {[%clk 0:00:41]} 61. Nf3 {[%clk 0:00:02]}  Rd3 {[%clk 0:00:40]} 62. Nh2 {[%clk 0:00:01]}  Rg3 {[%clk 0:00:39]} 63. Nf3 {[%clk 0:00:02]}  Rg4 {[%clk 0:00:37]} 64. Re5+ {[%clk 0:00:02]}  Kf6 {[%clk 0:00:36]} 65. Rc5 {[%clk 0:00:02]}  Rg8 {[%clk 0:00:34]} 66. Rc6+ {[%clk 0:00:02]}  Kf5 {[%clk 0:00:34]} 67. Rc5+ {[%clk 0:00:03]}  Kg4 {[%clk 0:00:32]} 68. Rc4 {[%clk 0:00:04]}  Ra8 {[%clk 0:00:31]} 69. Rc2 {[%clk 0:00:03]}  Ra3 {[%clk 0:00:30]} 70. Rd2 {[%clk 0:00:02]}  Rb3 {[%clk 0:00:27]} 71. Ne5+ {[%clk 0:00:03]}  Kf5 {[%clk 0:00:26]} 72. Nf3 {[%clk 0:00:04]}  Re3 {[%clk 0:00:25]} 73. Re2 {[%clk 0:00:04]}  Ra3 {[%clk 0:00:23]} 74. Re5+ {[%clk 0:00:05]}  Kg4 {[%clk 0:00:21]} 75. Rg5# {[%clk 0:00:04]} 1-0


[Site "https://www.chess.com"]

[Event "Titled Tuesday Blitz February 15 Early 2022"]
[White "Qashashvili, Alexandre"]
[Black "Sharapov, Evgeny"]
[WhiteFideId "13600842"]
[BlackFideId "14103133"]
[WhiteElo "2316"]
[BlackElo "2367"]
[Result "0-1"]
[Round "03"]
[TimeControl "180+1"]
[Date "2022.02.15"]
[WhiteClock "0:00:07"]
[BlackClock "0:01:23"]

1. e4 {[%clk 0:03:00]}  c5 {[%clk 0:02:59]} 2. Nc3 {[%clk 0:02:59]}  Nc6 {[%clk 0:02:58]} 3. Nf3 {[%clk 0:02:59]}  e5 {[%clk 0:02:57]} 4. d3 {[%clk 0:02:50]}  Be7 {[%clk 0:02:57]} 5. Be2 {[%clk 0:02:47]}  d6 {[%clk 0:02:56]} 6. h3 {[%clk 0:02:47]}  Nf6 {[%clk 0:02:56]} 7. Bg5 {[%clk 0:02:46]}  Nd7 {[%clk 0:02:53]} 8. Bxe7 {[%clk 0:02:45]}  Qxe7 {[%clk 0:02:53]} 9. Nd5 {[%clk 0:02:44]}  Qd8 {[%clk 0:02:52]} 10. c3 {[%clk 0:02:44]}  O-O {[%clk 0:02:51]} 11. O-O {[%clk 0:02:43]}  Nf6 {[%clk 0:02:50]} 12. Nxf6+ {[%clk 0:02:41]}  Qxf6 {[%clk 0:02:50]} 13. Qd2 {[%clk 0:02:41]}  Be6 {[%clk 0:02:47]} 14. Qg5 {[%clk 0:02:41]}  Qxg5 {[%clk 0:02:42]} 15. Nxg5 {[%clk 0:02:42]}  Bd7 {[%clk 0:02:42]} 16. Rfd1 {[%clk 0:02:25]}  h6 {[%clk 0:02:41]} 17. Nf3 {[%clk 0:02:25]}  f5 {[%clk 0:02:41]} 18. exf5 {[%clk 0:02:24]}  Bxf5 {[%clk 0:02:40]} 19. Nd2 {[%clk 0:02:22]}  d5 {[%clk 0:02:36]} 20. Nb3 {[%clk 0:02:21]}  b6 {[%clk 0:02:36]} 21. Bf3 {[%clk 0:02:18]}  Rad8 {[%clk 0:02:35]} 22. c4 {[%clk 0:02:16]}  Be6 {[%clk 0:02:23]} 23. Re1 {[%clk 0:02:03]}  Rd6 {[%clk 0:02:22]} 24. a4 {[%clk 0:01:56]}  dxc4 {[%clk 0:02:13]} 25. dxc4 {[%clk 0:01:56]}  Bxc4 {[%clk 0:02:12]} 26. Ra3 {[%clk 0:01:54]}  Nd4 {[%clk 0:02:03]} 27. Nxd4 {[%clk 0:01:51]}  exd4 {[%clk 0:02:03]} 28. b3 {[%clk 0:01:49]}  Be6 {[%clk 0:01:56]} 29. Rxe6 {[%clk 0:01:47]}  Rxe6 {[%clk 0:01:56]} 30. Bd5 {[%clk 0:01:46]}  Re8 {[%clk 0:01:56]} 31. Ra2 {[%clk 0:01:23]}  Kf8 {[%clk 0:01:55]} 32. Bxe6 {[%clk 0:01:22]}  Rxe6 {[%clk 0:01:54]} 33. Kf1 {[%clk 0:01:21]}  Ke7 {[%clk 0:01:54]} 34. g4 {[%clk 0:01:07]}  g5 {[%clk 0:01:51]} 35. Rd2 {[%clk 0:00:53]}  Kd6 {[%clk 0:01:50]} 36. Kg2 {[%clk 0:00:50]}  Kd5 {[%clk 0:01:50]} 37. Kg3 {[%clk 0:00:49]}  c4 {[%clk 0:01:47]} 38. bxc4+ {[%clk 0:00:48]}  Kxc4 {[%clk 0:01:48]} 39. Rc2+ {[%clk 0:00:45]}  Kb3 {[%clk 0:01:47]} 40. Rc7 {[%clk 0:00:46]}  a5 {[%clk 0:01:46]} 41. Rd7 {[%clk 0:00:44]}  Kxa4 {[%clk 0:01:42]} 42. Rxd4+ {[%clk 0:00:44]}  Kb3 {[%clk 0:01:42]} 43. f4 {[%clk 0:00:44]}  gxf4+ {[%clk 0:01:41]} 44. Kxf4 {[%clk 0:00:43]}  a4 {[%clk 0:01:41]} 45. Kf5 {[%clk 0:00:41]}  Rc6 {[%clk 0:01:41]} 46. Rd3+ {[%clk 0:00:30]}  Kc2 {[%clk 0:01:37]} 47. Ra3 {[%clk 0:00:26]}  b5 {[%clk 0:01:37]} 48. h4 {[%clk 0:00:26]}  Kb2 {[%clk 0:01:36]} 49. Rg3 {[%clk 0:00:19]}  a3 {[%clk 0:01:36]} 50. Rg2+ {[%clk 0:00:18]}  Rc2 {[%clk 0:01:35]} 51. Rg1 {[%clk 0:00:14]}  a2 {[%clk 0:01:34]} 52. g5 {[%clk 0:00:14]}  hxg5 {[%clk 0:01:33]} 53. hxg5 {[%clk 0:00:15]}  Rc1 {[%clk 0:01:32]} 54. Rg2+ {[%clk 0:00:13]}  Kb1 {[%clk 0:01:32]} 55. g6 {[%clk 0:00:10]}  Rf1+ {[%clk 0:01:26]} 56. Ke6 {[%clk 0:00:08]}  a1=Q {[%clk 0:01:24]} 57. g7 {[%clk 0:00:07]}  Qf6+ {[%clk 0:01:23]} 0-1


[Site "https://www.chess.com"]

[Event "Titled Tuesday Blitz February 15 Early 2022"]
[White "Ratnakaran, K."]
[Black "Abramov, Alexander"]
[WhiteFideId "5005507"]
[BlackFideId "4174089"]
[WhiteElo "2391"]
[BlackElo "2138"]
[Result "1-0"]
[Round "03"]
[TimeControl "180+1"]
[Date "2022.02.15"]
[WhiteClock "0:01:18"]
[BlackClock "0:00:01"]

1. e4 {[%clk 0:02:57]}  c5 {[%clk 0:02:59]} 2. Nf3 {[%clk 0:02:56]}  e6 {[%clk 0:02:58]} 3. d3 {[%clk 0:02:56]}  d5 {[%clk 0:02:58]} 4. Nbd2 {[%clk 0:02:56]}  Nc6 {[%clk 0:02:57]} 5. g3 {[%clk 0:02:56]}  Nf6 {[%clk 0:02:57]} 6. Bg2 {[%clk 0:02:57]}  g6 {[%clk 0:02:58]} 7. O-O {[%clk 0:02:57]}  Bg7 {[%clk 0:02:59]} 8. Re1 {[%clk 0:02:58]}  O-O {[%clk 0:02:59]} 9. c3 {[%clk 0:02:58]}  a5 {[%clk 0:02:59]} 10. e5 {[%clk 0:02:58]}  Nd7 {[%clk 0:02:59]} 11. d4 {[%clk 0:02:59]}  f6 {[%clk 0:02:55]} 12. exf6 {[%clk 0:02:58]}  Nxf6 {[%clk 0:02:55]} 13. dxc5 {[%clk 0:02:57]}  e5 {[%clk 0:02:23]} 14. Nxe5 {[%clk 0:02:52]}  Nxe5 {[%clk 0:02:19]} 15. Rxe5 {[%clk 0:02:51]}  Ne4 {[%clk 0:02:11]} 16. Rxe4 {[%clk 0:02:38]}  dxe4 {[%clk 0:02:09]} 17. Bxe4 {[%clk 0:02:37]}  Qc7 {[%clk 0:01:37]} 18. Qb3+ {[%clk 0:02:32]}  Kh8 {[%clk 0:01:35]} 19. Qb6 {[%clk 0:02:32]}  Qf7 {[%clk 0:01:17]} 20. c6 {[%clk 0:02:17]}  bxc6 {[%clk 0:00:49]} 21. Nf3 {[%clk 0:02:16]}  h6 {[%clk 0:00:38]} 22. Be3 {[%clk 0:02:09]}  Bf5 {[%clk 0:00:33]} 23. Bxc6 {[%clk 0:02:07]}  Rab8 {[%clk 0:00:28]} 24. Qxa5 {[%clk 0:02:06]}  Rxb2 {[%clk 0:00:27]} 25. Nh4 {[%clk 0:01:59]}  Bd3 {[%clk 0:00:13]} 26. Rd1 {[%clk 0:01:54]}  Rxf2 {[%clk 0:00:12]} 27. Rxd3 {[%clk 0:01:31]}  Rf1+ {[%clk 0:00:06]} 28. Kg2 {[%clk 0:01:31]}  Rf2+ {[%clk 0:00:03]} 29. Bxf2 {[%clk 0:01:31]}  Qxf2+ {[%clk 0:00:04]} 30. Kh3 {[%clk 0:01:31]}  Qf1+ {[%clk 0:00:05]} 31. Bg2 {[%clk 0:01:23]}  Qxd3 {[%clk 0:00:05]} 32. Qd5 {[%clk 0:01:21]}  Qxd5 {[%clk 0:00:04]} 33. Nxg6+ {[%clk 0:01:20]}  Kg8 {[%clk 0:00:02]} 34. Bxd5+ {[%clk 0:01:20]}  Rf7 {[%clk 0:00:01]} 35. c4 {[%clk 0:01:18]} 1-0


[Site "https://www.chess.com"]

[Event "Titled Tuesday Blitz February 15 Early 2022"]
[White "Rodchenkov, Sergey D."]
[Black "Petrova, Irina"]
[WhiteFideId "4168712"]
[BlackFideId "14124122"]
[WhiteElo "2306"]
[BlackElo "1988"]
[Result "1-0"]
[Round "03"]
[TimeControl "180+1"]
[Date "2022.02.15"]
[WhiteClock "0:01:51"]
[BlackClock "0:00:56"]

1. e4 {[%clk 0:03:00]}  e5 {[%clk 0:02:58]} 2. Nf3 {[%clk 0:03:00]}  Nc6 {[%clk 0:02:58]} 3. Bc4 {[%clk 0:03:01]}  Nf6 {[%clk 0:02:57]} 4. d3 {[%clk 0:03:01]}  Bc5 {[%clk 0:02:57]} 5. O-O {[%clk 0:03:02]}  d6 {[%clk 0:02:56]} 6. c3 {[%clk 0:03:02]}  a6 {[%clk 0:02:56]} 7. Bb3 {[%clk 0:03:00]}  Ba7 {[%clk 0:02:53]} 8. Nbd2 {[%clk 0:03:01]}  O-O {[%clk 0:02:52]} 9. h3 {[%clk 0:02:57]}  Ne7 {[%clk 0:02:50]} 10. Re1 {[%clk 0:02:52]}  Ng6 {[%clk 0:02:49]} 11. d4 {[%clk 0:02:47]}  h6 {[%clk 0:02:32]} 12. Nf1 {[%clk 0:02:45]}  Qe7 {[%clk 0:02:27]} 13. Ng3 {[%clk 0:02:43]}  Nh7 {[%clk 0:01:42]} 14. Be3 {[%clk 0:02:20]}  Ng5 {[%clk 0:01:35]} 15. Nxg5 {[%clk 0:02:15]}  hxg5 {[%clk 0:01:36]} 16. Nf5 {[%clk 0:02:05]}  Bxf5 {[%clk 0:01:35]} 17. exf5 {[%clk 0:02:06]}  Nf4 {[%clk 0:01:17]} 18. Qg4 {[%clk 0:01:56]}  Nd3 {[%clk 0:00:56]} 19. Bxg5 {[%clk 0:01:51]}  Qd7 {[%clk 0:00:56]} 20. Bf6 {[%clk 0:01:51]} 1-0


[Site "https://www.chess.com"]